[Event "24th European Women Club Cup 2019"]
[Site "Ulcinj"]
[Date "2019.11.12"]
[Round "3.26"]
[White "Haitovich, Avital"]
[Black "Reprun, Nadejda"]
[Result "1/2-1/2"]
[ECO "B13"]
[WhiteElo "1998"]
[BlackElo "1989"]
[Annotator "NA"]
[PlyCount "40"]
[EventDate "2019.11.10"]
[EventType "team-tourn"]
[EventCountry "MNE"]
[SourceTitle "playchess.com"]
[Source "ChessBase"]
[SourceQuality "1"]
[WhiteTeam "Hertzeliya"]
[BlackTeam "Rishon Lezion"]
[TimeControl "40/5400+30:1800+30"]

1. e4 {[%emt 0:00:00]} c6 {[%emt 0:00:00]} 2. d4 {[%emt 0:00:00]} d5 {[%emt 0:00:00]} 3. exd5 {[%emt 0:00:00]} cxd5 {[%emt 0:00:00]} 4. Bd3 {[%emt 0:00:02]} Nc6 {[%emt 0:00:00]} 5. c3 {[%emt 0:00:09]} Nf6 {[%emt 0:00:00]} 6. Bf4 {[%emt 0:00:10]} Bg4 {[%emt 0:00:00]} 7. Qb3 {[%emt 0:00:10]} e5 {[%emt 0:00:09]} 8. Bxe5 {[%emt 0:09:10]} Qe7 {[%emt 0:00:21]} 9. Ne2 {[%emt 0:07:05]} Bxe2 {[%emt 0:05:09]} 10. Bxe2 {[%emt 0:04:41]} Nxe5 {[%emt 0:00:48]} 11. dxe5 {[%emt 0:00:10]} Qxe5 {[%emt 0:00:06]} 12. Nd2 {[%emt 0:13:02]} O-O-O {[%emt 0:02:28]} 13. Nf3 {[%emt 0:06:26]} Qe4 {[%emt 0:08:58]} 14. Rd1 {[%emt 0:12:49]} Bc5 {[%emt 0:23:52]} 15. Rd2 {[%emt 0:08:40]} Qb1+ {[%emt 0:06:04]} 16. Rd1 {[%emt 0:00:50]} Qe4 {[%emt 0:00:12]} 17. Rd2 {[%emt 0:00:31]} Qb1+ {[%emt 0:00:26]} 18. Rd1 {[%emt 0:00:09]} Qe4 19. Rd2 Qb1+ 20. Rd1 Qe4 1/2-1/2

[Event "24th European Women Club Cup 2019"]
[Site "Ulcinj"]
[Date "2019.11.12"]
[Round "3.27"]
[White "Federovski, Adi"]
[Black "Yakovleva, Tatiana"]
[Result "1-0"]
[ECO "B10"]
[WhiteElo "2005"]
[BlackElo "1942"]
[Annotator "NA"]
[PlyCount "85"]
[EventDate "2019.11.10"]
[EventType "team-tourn"]
[EventCountry "MNE"]
[SourceTitle "playchess.com"]
[Source "ChessBase"]
[SourceQuality "1"]
[WhiteTeam "Rishon Lezion"]
[BlackTeam "Hertzeliya"]
[TimeControl "40/5400+30:1800+30"]

1. e4 {[%emt 0:00:00]} c6 {[%emt 0:00:00]} 2. Nc3 {[%emt 0:00:00]} d5 {[%emt 0:00:33]} 3. Nf3 {[%emt 0:00:00]} d4 {[%emt 0:01:16]} 4. Ne2 {[%emt 0:01:34]} c5 {[%emt 0:01:19]} 5. d3 {[%emt 0:01:03]} Nc6 {[%emt 0:01:24]} 6. g3 {[%emt 0:01:11]} e5 {[%emt 0:02:56]} 7. Bg2 {[%emt 0:00:40]} Nf6 {[%emt 0:04:56]} 8. O-O {[%emt 0:01:13]} Be7 {[%emt 0:00:50]} 9. Ne1 {[%emt 0:03:44]} O-O {[%emt 0:02:24]} 10. f4 {[%emt 0:00:37]} Bg4 {[%emt 0:08:17]} 11. h3 {[%emt 0:10:33]} Bxe2 {[%emt 0:01:59]} 12. Qxe2 {[%emt 0:00:06]} Rc8 {[%emt 0:04:45]} 13. Nf3 {[%emt 0:05:09]} Nd7 {[%emt 0:01:32]} 14. f5 {[%emt 0:07:02]} f6 {[%emt 0:08:06]} 15. h4 {[%emt 0:03:23]} Qe8 {[%emt 0:05:43]} 16. g4 {[%emt 0:04:48]} b5 {[%emt 0:01:48]} 17. g5 {[%emt 0:08:21]} Nb6 {[%emt 0:03:32]} 18. Bh3 {[%emt 0:02:10]} c4 {[%emt 0:00:43]} 19. Qg2 {[%emt 0:01:52]} cxd3 {[%emt 0:00:58]} 20. cxd3 {[%emt 0:00:08]} Nb4 {[%emt 0:00:59]} 21. Ne1 {[%emt 0:03:19]} Rc7 {[%emt 0:12:48]} 22. g6 {[%emt 0:02:38]} h6 {[%emt 0:04:59]} 23. Bg4 {[%emt 0:03:17]} Qc8 {[%emt 0:08:06]} 24. Bd2 {[%emt 0:00:49]} a5 {[%emt 0:09:51]} 25. Kh1 {[%emt 0:06:46]} a4 {[%emt 0:05:06]} 26. Rg1 {[%emt 0:02:11]} Nc2 {[%emt 0:00:54]} 27. Nxc2 {[%emt 0:01:53]} Rxc2 {[%emt 0:00:14]} 28. Rgc1 {[%emt 0:04:18]} b4 {[%emt 0:02:34]} 29. Bh5 {[%emt 0:08:36]} Rxc1+ {[%emt 0:03:22]} 30. Bxc1 {[%emt 0:01:07]} Qd7 {[%emt 0:00:49]} 31. Bxh6 {[%emt 0:03:21]} Rc8 {[%emt 0:01:19]} 32. Rg1 {[%emt 0:02:51]} b3 {[%emt 0:00:20]} 33. axb3 {[%emt 0:00:47]} axb3 {[%emt 0:00:01]} 34. Bc1 {[%emt 0:01:55]} Rc2 {[%emt 0:00:02]} 35. Qg3 {[%emt 0:01:58]} Qc7 {[%emt 0:01:26]} 36. Qe1 {[%emt 0:01:48]} Kf8 {[%emt 0:01:09]} 37. Bd2 {[%emt 0:03:47]} Rxb2 {[%emt 0:00:09]} 38. Bd1 {[%emt 0:00:08]} Na4 {[%emt 0:00:35]} 39. h5 {[%emt 0:01:44]} Nc3 {[%emt 0:00:29]} 40. h6 {[%emt 0:00:00]} gxh6 {[%emt 0:00:00]} 41. Qh4 {[%emt 0:04:47]} Nxd1 {[%emt 0:01:26]} 42. g7+ {[%emt 0:01:16]} Kg8 {[%emt 0:02:26]} 43. Qxh6 {[%emt 0:00:57]} 1-0

[Event "24th European Women Club Cup 2019"]
[Site "Ulcinj"]
[Date "2019.11.12"]
[Round "3.28"]
[White "Lian, Marina"]
[Black "Vardi, Shlomit"]
[Result "1-0"]
[ECO "B06"]
[WhiteElo "1855"]
[BlackElo "1935"]
[Annotator "NA"]
[PlyCount "127"]
[EventDate "2019.11.10"]
[EventType "team-tourn"]
[EventCountry "MNE"]
[SourceTitle "playchess.com"]
[Source "ChessBase"]
[SourceQuality "1"]
[WhiteTeam "Hertzeliya"]
[BlackTeam "Rishon Lezion"]
[TimeControl "40/5400+30:1800+30"]

1. e4 {[%emt 0:00:00]} d6 {[%emt 0:00:00]} 2. d4 {[%emt 0:00:00]} g6 {[%emt 0:00:00]} 3. Nc3 {[%emt 0:00:00]} Bg7 {[%emt 0:00:00]} 4. Be3 {[%emt 0:00:00]} a6 {[%emt 0:00:00]} 5. Qd2 {[%emt 0:00:40]} b5 {[%emt 0:00:20]} 6. h4 {[%emt 0:02:20]} h6 {[%emt 0:02:12]} 7. f3 {[%emt 0:00:30]} Nd7 {[%emt 0:00:30]} 8. g4 {[%emt 0:00:30]} Bb7 {[%emt 0:00:30]} 9. a4 {[%emt 0:00:30]} b4 {[%emt 0:00:30]} 10. Nd1 {[%emt 0:00:30]} c5 {[%emt 0:17:02]} 11. c4 {[%emt 0:32:46]} a5 {[%emt 0:04:57]} 12. Ne2 {[%emt 0:10:33]} Qc7 {[%emt 0:18:04]} 13. Rc1 {[%emt 0:05:32]} cxd4 {[%emt 0:00:30]} 14. Bxd4 {[%emt 0:00:30]} e5 {[%emt 0:00:30]} 15. Bf2 {[%emt 0:00:30]} Nc5 {[%emt 0:12:47]} 16. Qc2 {[%emt 0:21:32]} Nf6 {[%emt 0:06:32]} 17. Bg2 {[%emt 0:00:30]} h5 {[%emt 0:00:30]} 18. g5 {[%emt 0:00:30]} Nfd7 {[%emt 0:02:51]} 19. b3 {[%emt 0:01:04]} O-O {[%emt 0:00:30]} 20. Ne3 {[%emt 0:01:49]} Rac8 {[%emt 0:00:30]} 21. Rd1 {[%emt 0:00:29]} Nb6 {[%emt 0:05:49]} 22. Rd2 {[%emt 0:00:30]} Qe7 {[%emt 0:00:30]} 23. Nc1 {[%emt 0:00:30]} Rfd8 {[%emt 0:00:30]} 24. Nd3 {[%emt 0:00:30]} Qc7 {[%emt 0:00:30]} 25. O-O {[%emt 0:00:30]} Ne6 {[%emt 0:00:30]} 26. Rfd1 {[%emt 0:00:30]} Nd7 {[%emt 0:00:30]} 27. Qb2 {[%emt 0:00:30]} Nf4 {[%emt 0:00:30]} 28. Bf1 {[%emt 0:00:30]} Nc5 {[%emt 0:00:30]} 29. Nxc5 {[%emt 0:00:30]} dxc5 {[%emt 0:00:30]} 30. Qc2 {[%emt 0:00:30]} Bf8 {[%emt 0:00:30]} 31. Rxd8 {[%emt 0:00:30]} Rxd8 {[%emt 0:00:30]} 32. Nd5 {[%emt 0:00:30]} Nxd5 {[%emt 0:00:30]} 33. cxd5 {[%emt 0:00:30]} Qd6 {[%emt 0:00:30]} 34. Rc1 {[%emt 0:00:30]} Rc8 {[%emt 0:00:30]} 35. Qc4 {[%emt 0:00:30]} Be7 {[%emt 0:00:30]} 36. Qb5 {[%emt 0:00:30]} Rc7 {[%emt 0:00:30]} 37. Qxa5 {[%emt 0:00:30]} f6 {[%emt 0:00:30]} 38. gxf6 {[%emt 0:00:30]} Bxf6 {[%emt 0:00:30]} 39. Rxc5 {[%emt 0:00:30]} Rf7 {[%emt 0:00:30]} 40. Rc1 {[%emt 0:16:38]} Rc7 41. Rc5 {[%emt 0:03:37]} Rf7 {[%emt 0:26:38]} 42. Qxb4 {[%emt 0:08:12]} Kg7 {[%emt 0:00:30]} 43. Rb5 {[%emt 0:00:30]} Qd7 {[%emt 0:00:30]} 44. Rb6 {[%emt 0:00:30]} Bd8 {[%emt 0:00:30]} 45. Rb5 {[%emt 0:00:30]} Ba6 {[%emt 0:00:30]} 46. Bg3 {[%emt 0:00:30]} Rxf3 {[%emt 0:00:30]} 47. Bxe5+ {[%emt 0:00:30]} Kh7 {[%emt 0:01:34]} 48. Bg2 {[%emt 0:19:04]} Rf7 {[%emt 0:01:45]} 49. Rb8 {[%emt 0:00:27]} Qg4 {[%emt 0:01:58]} 50. Qc3 {[%emt 0:00:30]} Rf1+ {[%emt 0:05:24]} 51. Kh2 {[%emt 0:01:46]} Qxh4+ {[%emt 0:02:47]} 52. Qh3 {[%emt 0:00:56]} Qf2 {[%emt 0:01:36]} 53. Qd7+ {[%emt 0:00:30]} Kh6 {[%emt 0:00:33]} 54. Bg7+ {[%emt 0:00:14]} Kg5 {[%emt 0:00:15]} 55. Qxd8+ {[%emt 0:00:31]} Kg4 {[%emt 0:00:30]} 56. Qd7+ {[%emt 0:00:12]} Kg5 {[%emt 0:01:09]} 57. Qe7+ {[%emt 0:00:30]} Kg4 {[%emt 0:00:30]} 58. Qe6+ {[%emt 0:00:30]} Kh4 {[%emt 0:00:30]} 59. Qh3+ {[%emt 0:00:30]} Kg5 {[%emt 0:00:30]} 60. Bd4 {[%emt 0:00:30]} Qxd4 {[%emt 0:00:30]} 61. Qg3+ {[%emt 0:00:30]} Kh6 {[%emt 0:00:30]} 62. Bxf1 {[%emt 0:00:30]} Qd2+ {[%emt 0:00:30]} 63. Bg2 {[%emt 0:00:30]} Bf1 {[%emt 0:00:30]} 64. Rb6 {[%emt 0:00:30]} 1-0

[Event "24th European Women Club Cup 2019"]
[Site "Ulcinj"]
[Date "2019.11.13"]
[Round "4.1"]
[White "Shuvalova, Polina"]
[Black "Koneru, Humpy"]
[Result "1/2-1/2"]
[ECO "C42"]
[WhiteElo "2434"]
[BlackElo "2577"]
[Annotator "ChessBase"]
[PlyCount "76"]
[EventDate "2019.11.10"]
[EventType "team-tourn"]
[EventCountry "MNE"]
[SourceTitle "playchess.com"]
[Source "ChessBase"]
[SourceQuality "1"]
[WhiteTeam "Novy Bor"]
[BlackTeam "Cercle d`Echecs"]
[TimeControl "40/5400+30:1800+30"]

1. e4 {[%emt 0:00:00]} e5 {[%emt 0:00:00]} 2. Nf3 {[%emt 0:00:00]} Nf6 {[%emt 0:00:00]} 3. Nxe5 {[%emt 0:00:00]} d6 {[%emt 0:00:00]} 4. Nf3 {[%emt 0:00:00]} Nxe4 {[%emt 0:00:06]} 5. Qe2 {[%emt 0:00:01]} Qe7 {[%emt 0:00:24]} 6. d3 {[%emt 0:00:05]} Nf6 {[%emt 0:00:26]} 7. Bg5 {[%emt 0:00:04]} Qxe2+ {[%emt 0:00:50]} 8. Bxe2 {[%emt 0:00:03]} Be7 {[%emt 0:00:19]} 9. Nc3 {[%emt 0:00:07]} h6 {[%emt 0:02:52]} 10. Bd2 {[%emt 0:00:23]} Bd7 {[%emt 0:10:03]} 11. O-O-O {[%emt 0:03:49]} O-O {[%emt 0:07:27]} 12. h3 {[%emt 0:03:28]} Re8 {[%emt 0:04:17]} 13. Rde1 {[%emt 0:08:07]} Bf8 {[%emt 0:05:23]} 14. a3 {[%emt 0:06:54]} Nc6 {[%emt 0:04:21]} 15. Bd1 {[%emt 0:02:29]} a6 {[%emt 0:03:00]} 16. Bf4 {[%emt 0:05:00]} Ne7 {[%emt 0:09:40]} 17. Bh2 {[%emt 0:07:10]} Ng6 {[%emt 0:07:55]} 18. Re3 {[%emt 0:07:18]} c6 {[%emt 0:04:30]} 19. Rhe1 {[%emt 0:01:48]} Rxe3 {[%emt 0:01:17]} 20. Rxe3 {[%emt 0:05:28]} b5 {[%emt 0:06:19]} 21. Re1 {[%emt 0:04:58]} Re8 {[%emt 0:06:35]} 22. Rxe8 {[%emt 0:01:24]} Nxe8 {[%emt 0:00:30]} 23. Kd2 {[%emt 0:03:25]} Be7 {[%emt 0:01:48]} 24. Be2 {[%emt 0:03:06]} f5 {[%emt 0:00:56]} 25. d4 {[%emt 0:05:52]} Kf7 {[%emt 0:05:27]} 26. Bd3 {[%emt 0:07:22]} Bf6 {[%emt 0:01:13]} 27. Ne2 {[%emt 0:03:15]} Ne7 {[%emt 0:00:52]} 28. h4 {[%emt 0:00:31]} g5 {[%emt 0:00:46]} 29. hxg5 {[%emt 0:00:12]} hxg5 {[%emt 0:00:03]} 30. Ne1 {[%emt 0:03:30]} Be6 {[%emt 0:05:03]} 31. b3 {[%emt 0:01:25]} c5 {[%emt 0:03:50]} 32. dxc5 {[%emt 0:02:01]} dxc5 {[%emt 0:00:03]} 33. c4 {[%emt 0:00:12]} bxc4 {[%emt 0:00:12]} 34. Bxc4 {[%emt 0:00:33]} Bxc4 {[%emt 0:00:34]} 35. bxc4 {[%emt 0:00:04]} Nc6 {[%emt 0:00:43]} 36. Nd3 {[%emt 0:02:13]} Na5 {[%emt 0:02:53]} 37. Nxc5 {[%emt 0:00:12]} Nxc4+ {[%emt 0:00:14]} 38. Kd3 {[%emt 0:00:13]} Nxa3 {[%emt 0:00:27] Kd4} 1/2-1/2

[Event "24th European Women Club Cup 2019"]
[Site "Ulcinj"]
[Date "2019.11.13"]
[Round "4.2"]
[White "Cramling, Pia"]
[Black "Bulmaga, Irina"]
[Result "1-0"]
[ECO "E15"]
[WhiteElo "2443"]
[BlackElo "2435"]
[Annotator "NA"]
[PlyCount "103"]
[EventDate "2019.11.10"]
[EventType "team-tourn"]
[EventCountry "MNE"]
[SourceTitle "playchess.com"]
[Source "ChessBase"]
[SourceQuality "1"]
[WhiteTeam "Cercle d`Echecs"]
[BlackTeam "Novy Bor"]
[TimeControl "40/5400+30:1800+30"]

1. d4 {[%emt 0:00:00]} Nf6 {[%emt 0:00:00]} 2. c4 {[%emt 0:00:07]} e6 {[%emt 0:00:00]} 3. Nf3 {[%emt 0:00:13]} b6 {[%emt 0:00:03]} 4. g3 {[%emt 0:00:10]} Bb7 {[%emt 0:00:08]} 5. Bg2 {[%emt 0:00:05]} g6 {[%emt 0:00:40]} 6. Nc3 {[%emt 0:04:39]} Bg7 {[%emt 0:00:09]} 7. d5 {[%emt 0:00:54]} O-O {[%emt 0:00:09]} 8. O-O {[%emt 0:01:04]} exd5 {[%emt 0:00:07]} 9. cxd5 {[%emt 0:01:29]} Re8 {[%emt 0:00:08]} 10. Nd4 {[%emt 0:11:36]} Na6 {[%emt 0:00:18]} 11. Ndb5 {[%emt 0:10:46]} d6 {[%emt 0:01:51]} 12. Bg5 {[%emt 0:14:46]} h6 {[%emt 0:01:12]} 13. Bxf6 {[%emt 0:00:05]} Bxf6 {[%emt 0:06:34]} 14. Rc1 {[%emt 0:00:14]} Nc5 {[%emt 0:01:52]} 15. b4 {[%emt 0:02:32]} a6 {[%emt 0:00:56]} 16. Nd4 {[%emt 0:04:19]} Nd7 {[%emt 0:00:41]} 17. e3 {[%emt 0:07:31]} Ne5 {[%emt 0:06:43]} 18. Re1 {[%emt 0:07:48]} Bg7 {[%emt 0:04:47]} 19. Qe2 {[%emt 0:01:53]} Qd7 {[%emt 0:11:36]} 20. Red1 {[%emt 0:00:23]} Re7 {[%emt 0:05:29]} 21. h3 {[%emt 0:02:39]} Qd8 {[%emt 0:16:04]} 22. Nc6 {[%emt 0:06:20]} Nxc6 {[%emt 0:06:00]} 23. dxc6 {[%emt 0:00:06]} Bc8 {[%emt 0:00:04]} 24. Nd5 {[%emt 0:00:33]} Re8 {[%emt 0:03:18]} 25. Nxb6 {[%emt 0:00:31]} Rb8 {[%emt 0:00:02]} 26. Nd5 {[%emt 0:00:42]} h5 {[%emt 0:06:04]} 27. a3 {[%emt 0:01:19]} Be6 {[%emt 0:02:16]} 28. Nf4 {[%emt 0:01:57]} Rb5 {[%emt 0:06:11]} 29. Bd5 {[%emt 0:02:11]} h4 {[%emt 0:03:53]} 30. g4 {[%emt 0:07:07]} Qf6 {[%emt 0:04:53]} 31. Rc4 {[%emt 0:00:30]} g5 {[%emt 0:04:24]} 32. Nh5 {[%emt 0:00:19]} Qg6 {[%emt 0:00:18]} 33. Nxg7 {[%emt 0:01:50]} Kxg7 {[%emt 0:00:31]} 34. Rcd4 {[%emt 0:02:40]} Bxd5 {[%emt 0:04:21]} 35. Rxd5 {[%emt 0:00:06]} Rb6 {[%emt 0:01:55]} 36. Qc4 {[%emt 0:01:42]} f6 {[%emt 0:01:18]} 37. Rf5 {[%emt 0:01:49]} Re5 {[%emt 0:02:47]} 38. Rxd6 {[%emt 0:03:51]} cxd6 {[%emt 0:00:27]} 39. Rxe5 {[%emt 0:01:25]} fxe5 {[%emt 0:00:49]} 40. c7 {[%emt 0:00:00]} d5 {[%emt 0:00:00]} 41. Qxd5 {[%emt 0:13:52]} Rc6 {[%emt 0:10:42]} 42. Qd7+ {[%emt 0:00:21]} Kh6 {[%emt 0:00:18]} 43. c8=Q {[%emt 0:00:14]} Rxc8 {[%emt 0:00:25]} 44. Qxc8 {[%emt 0:00:06]} Qb1+ {[%emt 0:00:24]} 45. Kg2 {[%emt 0:00:44]} Qe4+ {[%emt 0:00:59]} 46. Kh2 {[%emt 0:00:16]} Qd5 {[%emt 0:05:24]} 47. Qf8+ {[%emt 0:02:53]} Kh7 {[%emt 0:02:02]} 48. Qf5+ {[%emt 0:00:06]} Kh6 {[%emt 0:00:57]} 49. Qf6+ {[%emt 0:00:07]} Kh7 {[%emt 0:00:04]} 50. Qxg5 {[%emt 0:00:10]} Qa2 {[%emt 0:00:05]} 51. Qxh4+ {[%emt 0:00:31]} Kg7 {[%emt 0:00:11]} 52. Qg5+ {[%emt 0:00:19]} 1-0

[Event "24th European Women Club Cup 2019"]
[Site "Ulcinj"]
[Date "2019.11.13"]
[Round "4.3"]
[White "Hoang, Thanh Trang"]
[Black "Socko, Monika"]
[Result "1/2-1/2"]
[ECO "A48"]
[WhiteElo "2414"]
[BlackElo "2417"]
[Annotator "NA"]
[PlyCount "100"]
[EventDate "2019.11.10"]
[EventType "team-tourn"]
[EventCountry "MNE"]
[SourceTitle "playchess.com"]
[Source "ChessBase"]
[SourceQuality "1"]
[WhiteTeam "Novy Bor"]
[BlackTeam "Cercle d`Echecs"]
[TimeControl "40/5400+30:1800+30"]

1. d4 {[%emt 0:00:00]} Nf6 {[%emt 0:00:00]} 2. Nf3 {[%emt 0:00:03]} g6 {[%emt 0:00:00]} 3. Bf4 {[%emt 0:00:50]} Bg7 {[%emt 0:00:14]} 4. e3 {[%emt 0:00:20]} d6 {[%emt 0:00:31]} 5. h3 {[%emt 0:00:41]} O-O {[%emt 0:00:08]} 6. c3 {[%emt 0:00:52]} Nc6 {[%emt 0:02:06]} 7. Be2 {[%emt 0:01:37]} Re8 {[%emt 0:00:20]} 8. O-O {[%emt 0:01:36]} Bd7 {[%emt 0:00:32]} 9. Bh2 {[%emt 0:04:57]} e5 {[%emt 0:02:27]} 10. dxe5 {[%emt 0:07:53]} dxe5 {[%emt 0:01:24]} 11. Nbd2 {[%emt 0:01:15]} e4 {[%emt 0:12:22]} 12. Nd4 {[%emt 0:01:11]} Ne5 {[%emt 0:04:42]} 13. Nc4 {[%emt 0:04:04]} Nxc4 {[%emt 0:12:47]} 14. Bxc4 {[%emt 0:00:13]} Qe7 {[%emt 0:00:44]} 15. Qb3 {[%emt 0:04:32]} c5 {[%emt 0:04:04]} 16. Nb5 {[%emt 0:03:15]} Bxb5 {[%emt 0:00:13]} 17. Qxb5 {[%emt 0:01:19]} Red8 {[%emt 0:02:58]} 18. Rfd1 {[%emt 0:02:42]} Rac8 {[%emt 0:06:13]} 19. a4 {[%emt 0:03:56]} g5 {[%emt 0:07:26]} 20. Qb3 {[%emt 0:04:05]} g4 {[%emt 0:01:33]} 21. h4 {[%emt 0:03:32]} Nh5 {[%emt 0:06:59]} 22. Rxd8+ {[%emt 0:06:11]} Rxd8 {[%emt 0:00:01]} 23. Rd1 {[%emt 0:00:38]} Rd7 {[%emt 0:09:52]} 24. Be2 {[%emt 0:18:31]} Nf6 {[%emt 0:04:44]} 25. Rxd7 {[%emt 0:02:54]} Qxd7 {[%emt 0:00:07]} 26. Qd1 {[%emt 0:00:26]} h5 {[%emt 0:01:31]} 27. Qxd7 {[%emt 0:05:38]} Nxd7 {[%emt 0:00:03]} 28. f3 {[%emt 0:04:15]} exf3 {[%emt 0:07:16]} 29. gxf3 {[%emt 0:00:08]} Ne5 {[%emt 0:01:44]} 30. fxg4 {[%emt 0:00:21]} hxg4 {[%emt 0:01:46]} 31. Kg2 {[%emt 0:02:02]} f5 {[%emt 0:01:40]} 32. Bf4 {[%emt 0:01:50]} c4 {[%emt 0:01:12]} 33. Bxe5 {[%emt 0:07:01]} Bxe5 {[%emt 0:00:06]} 34. Bxc4+ {[%emt 0:00:15]} Kg7 {[%emt 0:00:06]} 35. a5 {[%emt 0:02:54]} Bc7 {[%emt 0:01:53]} 36. Bd5 {[%emt 0:00:57]} Bxa5 {[%emt 0:00:08]} 37. Bxb7 {[%emt 0:00:12]} Bb6 {[%emt 0:00:24]} 38. Bc8 {[%emt 0:00:57]} Kg6 {[%emt 0:04:27]} 39. e4 {[%emt 0:00:10]} Kh5 {[%emt 0:01:54]} 40. exf5 {[%emt 0:00:00]} Bd8 {[%emt 0:00:00]} 41. c4 {[%emt 0:08:07]} Kxh4 {[%emt 0:01:01]} 42. c5 {[%emt 0:05:34]} Kg5 {[%emt 0:00:47]} 43. b4 {[%emt 0:01:34]} Bc7 {[%emt 0:03:03]} 44. Kf2 {[%emt 0:02:19]} Kf6 {[%emt 0:01:14]} 45. Be6 {[%emt 0:00:46]} g3+ {[%emt 0:04:04]} 46. Kf3 {[%emt 0:00:11]} Be5 {[%emt 0:00:24]} 47. b5 {[%emt 0:02:37]} Bd4 {[%emt 0:00:59]} 48. c6 {[%emt 0:00:20]} Be5 {[%emt 0:00:03]} 49. Ke3 {[%emt 0:00:22]} Bc7 {[%emt 0:00:16]} 50. Kf3 {[%emt 0:00:18]} Ke5 {Ke4+} 1/2-1/2

[Event "24th European Women Club Cup 2019"]
[Site "Ulcinj"]
[Date "2019.11.13"]
[Round "4.4"]
[White "Skripchenko, Almira"]
[Black "Rodshtein, Tereza"]
[Result "1-0"]
[ECO "C54"]
[WhiteElo "2403"]
[BlackElo "2195"]
[Annotator "NA"]
[PlyCount "45"]
[EventDate "2019.11.10"]
[EventType "team-tourn"]
[EventCountry "MNE"]
[SourceTitle "playchess.com"]
[Source "ChessBase"]
[SourceQuality "1"]
[WhiteTeam "Cercle d`Echecs"]
[BlackTeam "Novy Bor"]
[TimeControl "40/5400+30:1800+30"]

1. e4 {[%emt 0:00:00]} e5 {[%emt 0:00:00]} 2. Nf3 {[%emt 0:00:00]} Nc6 {[%emt 0:00:00]} 3. Bc4 {[%emt 0:00:29]} Bc5 {[%emt 0:00:38]} 4. c3 {[%emt 0:00:30]} Nf6 {[%emt 0:00:13]} 5. d3 {[%emt 0:00:17]} a6 {[%emt 0:01:37]} 6. O-O {[%emt 0:00:43]} O-O {[%emt 0:00:41]} 7. d4 {[%emt 0:01:25]} Ba7 {[%emt 0:06:10]} 8. dxe5 {[%emt 0:00:18]} Nxe4 {[%emt 0:15:04]} 9. Bd5 {[%emt 0:03:29]} Nc5 {[%emt 0:02:34]} 10. Bg5 {[%emt 0:00:10]} Qe8 {[%emt 0:04:46]} 11. Re1 {[%emt 0:00:13]} b5 {[%emt 0:09:08]} 12. b4 {[%emt 0:11:40]} Ne6 {[%emt 0:01:51]} 13. Nbd2 {[%emt 0:01:07]} Bb7 {[%emt 0:22:52]} 14. Ne4 {[%emt 0:16:10]} Nxg5 {[%emt 0:07:28]} 15. Nfxg5 {[%emt 0:18:47]} Qxe5 {[%emt 0:03:38]} 16. Nxf7 {[%emt 0:01:32]} Rxf7 {[%emt 0:04:07]} 17. Bxf7+ {[%emt 0:00:11]} Kxf7 {[%emt 0:01:44]} 18. Qxd7+ {[%emt 0:00:14]} Ne7 {[%emt 0:05:37]} 19. Nc5 {[%emt 0:00:25]} Qf6 {[%emt 0:01:46]} 20. Re6 {[%emt 0:02:27]} Qh4 {[%emt 0:01:55]} 21. Nxb7 {[%emt 0:00:59]} Bxf2+ {[%emt 0:00:29]} 22. Kh1 {[%emt 0:00:14]} Re8 {[%emt 0:02:05]} 23. Rf1 {[%emt 0:00:52]} 1-0

[Event "24th European Women Club Cup 2019"]
[Site "Ulcinj"]
[Date "2019.11.13"]
[Round "4.5"]
[White "Muzychuk, Mariya"]
[Black "Mammadzada, Gunay"]
[Result "1-0"]
[ECO "D10"]
[WhiteElo "2552"]
[BlackElo "2427"]
[Annotator "ChessBase"]
[PlyCount "67"]
[EventDate "2019.11.10"]
[EventType "team-tourn"]
[EventCountry "MNE"]
[SourceTitle "playchess.com"]
[Source "ChessBase"]
[SourceQuality "1"]
[WhiteTeam "Kyiv"]
[BlackTeam "Odlar Yurdu"]
[TimeControl "40/5400+30:1800+30"]

1. d4 {[%emt 0:00:00]} d5 {[%emt 0:00:00]} 2. c4 {[%emt 0:00:00]} c6 {[%emt 0:00:00]} 3. Nc3 {[%emt 0:00:12]} Nf6 {[%emt 0:00:10]} 4. cxd5 {[%emt 0:00:13]} cxd5 {[%emt 0:00:10]} 5. Bf4 {[%emt 0:00:08]} Nc6 {[%emt 0:00:16]} 6. e3 {[%emt 0:00:13]} Bg4 {[%emt 0:00:44]} 7. Qb3 {[%emt 0:00:25]} Na5 {[%emt 0:00:43]} 8. Qa4+ {[%emt 0:00:06]} Bd7 {[%emt 0:00:07]} 9. Qc2 {[%emt 0:00:07]} e6 {[%emt 0:00:52]} 10. Bd3 {[%emt 0:01:20]} Be7 {[%emt 0:01:08]} 11. Nf3 {[%emt 0:00:32]} Nc6 {[%emt 0:00:55]} 12. a3 {[%emt 0:00:23]} Nh5 {[%emt 0:00:46]} 13. Be5 {[%emt 0:00:20]} f6 {[%emt 0:02:15]} 14. Bg3 {[%emt 0:00:18]} f5 {[%emt 0:11:56]} 15. Be5 {[%emt 0:02:36]} Nf6 {[%emt 0:00:13]} 16. O-O {[%emt 0:01:56]} O-O {[%emt 0:07:13]} 17. b4 {[%emt 0:01:00]} Rc8 {[%emt 0:05:02]} 18. Qb2 {[%emt 0:02:11]} Ne4 {[%emt 0:06:07]} 19. Rac1 {[%emt 0:08:36]} Be8 {[%emt 0:15:36]} 20. Ne2 {[%emt 0:06:10]} g5 {[%emt 0:05:23]} 21. Rfd1 {[%emt 0:24:56]} Bh5 {[%emt 0:09:56]} 22. b5 {[%emt 0:11:04]} Nxe5 {[%emt 0:03:00]} 23. Nxe5 {[%emt 0:00:08]} Qa5 {[%emt 0:02:41]} 24. f3 {[%emt 0:04:48]} Bxa3 {[%emt 0:07:25]} 25. Ra1 {[%emt 0:00:43]} Nc3 {[%emt 0:03:54]} 26. Nxc3 {[%emt 0:01:14]} Rxc3 {[%emt 0:00:44]} 27. Qd2 {[%emt 0:01:18]} Qc7 {[%emt 0:06:57]} 28. Nd7 {[%emt 0:12:27]} Rf7 {[%emt 0:01:51]} 29. Nc5 {[%emt 0:02:06]} Rxc5 {[%emt 0:05:55]} 30. Rxa3 {[%emt 0:01:13]} Rc4 {[%emt 0:00:14]} 31. Bxc4 {[%emt 0:00:28]} Qxc4 {[%emt 0:00:01]} 32. Qb2 {[%emt 0:03:58]} Rc7 {[%emt 0:02:40]} 33. Raa1 {[%emt 0:01:32]} Rf7 {[%emt 0:01:03]} 34. Rdc1 {[%emt 0:00:28]} 1-0